Cogmind - Beta 11.1 @@@ ROGUE MODE // 2022.06.24 @ 15:53:00 Player: Cyurio Result: Destroyed by Y-45 Defender with Heavy Assault Rifle Performance ------------- Evolutions (1) 500 Regions Visited (2) 400 Robots Destroyed (23) 115 Value Destroyed (663) 663 Prototype IDs (0) 0 Alien Tech Used (0) 0 Bonus (0) 0 TOTAL SCORE: 1678 Bonus ------- None Cogmind --------- Core Integrity 0/400 Matter 300/300 Energy 99/100 System Corruption 7% Temperature Cool (9) Movement Core (100) Ox1 Location -9/Materials Parts ------- > --- POWER (1) -------- (None) > --- PROPULSION (4) --- (None) > --- UTILITY (2) ------ (None) > --- WEAPON (2) ------- Flail Flail > --- INVENTORY (5) ---- Improved Ion Engine Cargo Storage Unit Peak State ------------ > --- POWER ------------ Light Ion Engine > --- PROPULSION ------- Aluminum Leg Aluminum Leg > --- UTILITY ---------- Small Storage Unit Shield Generator > --- WEAPON ----------- Medium Laser Assault Rifle > --- INVENTORY -------- Light Ion Engine Wheel Compact Wheel Huge Storage Unit EM Pulse Gun [Rating: 8] Favorites ----------- Power Light Ion Engine Engine Light Ion Engine Propulsion Aluminum Leg Leg Aluminum Leg Flight Unit Flight Unit Utility Small Storage Unit Device Shield Generator Storage Small Storage Unit Processor Signal Interpreter Weapon Flail Energy Gun Medium Laser Ballistic Gun Assault Rifle Impact Weapon Flail Slashing Weapon Mining Claw Build | -11 -10 -9 ------- Run | Scr Mat Mat Slots Evolved 2 | . . 2 Power . | . . . Propulsion 2 | . . 2 Utility . | . . . Weapon . | . . . Parts Attached 18 | . 9 9 Power 3 | . 2 1 Engine 3 | . 2 1 Core . | . . . Reactor . | . . . Propulsion 6 | . 4 2 Treads . | . . . Leg 3 | . 1 2 Wheel . | . . . Hover . | . . . Flight 3 | . 3 . Utility 2 | . 1 1 Device 1 | . 1 . Storage . | . . . Processor 1 | . . 1 Hackware . | . . . Protection . | . . . Artifact . | . . . Weapon 7 | . 2 5 Energy Gun . | . . . Energy Cannon . | . . . Ballistic Gun . | . . . Ballistic Cannon . | . . . Launcher . | . . . Special Weapon . | . . . Impact Weapon 6 | . 2 4 Slashing Weapon 1 | . . 1 Piercing Weapon . | . . . Special Melee Weapon . | . . . Unidentified Prototypes . | . . . Parts Lost 12 | . 4 8 Power 4 | . 2 2 Propulsion 5 | . 1 4 Utility 2 | . 1 1 Weapon 1 | . . 1 Highest Loss Streak 3 | . 3 3 To Critical Strikes . | . . . Average Slot Usage (%) 61 | . 77 37 Engine 9 | . 13 3 Leg 13 | . 18 6 Flight 6 | . 9 1 Device 1 | . 2 . Storage 5 | . 9 . Processor 1 | . . 3 Energy Gun 5 | . 9 . Ballistic Gun 5 | . 9 . Impact Weapon 9 | . 4 17 Slashing Weapon 1 | . . 4 Naked Turns 2 | . . 2 Heaviest Build 14 | 12 14 11 Greatest Support 20 | 20 20 13 Greatest Overweight (x) 1 | . . 1 Average Overweight (x) . | . . . Largest Inventory Capacity 8 | . 8 5 Average Capacity 6 | . 7 5 Most Carried 8 | . 8 4 Average Carried 4 | . 5 2 Final Capacity 8 | 8 5 5 Final Carried 6 | 6 5 3 Class Distribution -------------------- 100% | Mutant Dominant Class ---------------- Mutant | -10/Materials Mutant | -9/Materials Resources | -11 -10 -9 ----------- Run | Scr Mat Mat Matter Collected 444 | 200 169 75 Remotely . | . . . Salvage Created 713 | . 524 189 Parts 34 | . 25 9 Haulers Intercepted . | . . . Recyclers Shooed . | . . . Parts Field Recycled . | . . . Retrieved Matter . | . . . Parts Self-Destructed . | . . . Prevented . | . . . Kills | -11 -10 -9 ------- Run | Scr Mat Mat Combat Hostiles Destroyed 21 | . 16 5 Melee 3 | . 2 1 Guns 11 | . 11 . Classes Destroyed 6 | . 4 2 Operator 1 | . 1 . Watcher 1 | . 1 . Swarmer 5 | . 5 . Grunt 13 | . 11 2 Brawler 1 | . . 1 Sentry 2 | . . 2 Best Kill Streak 5 | . 5 1 Combat Bots Only 5 | . 5 1 Max Kills in Single Turn 1 | . 1 1 Gunslinging . | . . . Exploded . | . . . Melee 1 | . 1 1 Uniques/NPCs Destroyed . | . . . Combat | -11 -10 -9 -------- Run | Scr Mat Mat Damage Taken 1510 | . 639 871 Core 648 | . 243 405 Absorbed by Shields 80 | . 80 . Core Remaining (%) 51 | 100 2 . Volleys Fired 33 | . 33 . Largest 2 | . 2 . Hottest 70 | . 70 . Shots Fired 66 | . 66 . Gun 66 | . 66 . Cannon . | . . . Launcher . | . . . Special . | . . . Kinetic 33 | . 33 . Thermal 33 | . 33 . Explosive . | . . . Electromagnetic . | . . . Robot Hit Streak 11 | . 11 . Robot Miss Streak 2 | . 2 . Penetration Max . | . . . Secondary Targets 1 | . 1 . Max Gunslinging Chain 1 | . 1 . Shots Hit Robots 87 | . 56 31 Core Hits 24 | . 22 2 Critical Kills . | . . . Critical Parts Destroyed 5 | . 4 1 Critical Strikes 7 | . 6 1 Burn 2 | . 2 . Smash 5 | . 4 1 Melee Attacks 67 | . 22 45 Impact 44 | . 22 22 Slashing 23 | . . 23 Piercing . | . . . Sneak Attacks 1 | . . 1 Combat Hostiles . | . . . Follow-up Attacks 7 | . . 7 Damage Inflicted 1749 | . 931 818 Guns 589 | . 589 . Cannons . | . . . Explosions . | . . . Melee 1160 | . 342 818 Ramming . | . . . Kinetic 261 | . 261 . Thermal 328 | . 328 . Explosive . | . . . Electromagnetic . | . . . Impact 862 | . 342 520 Slashing 298 | . . 298 Piercing . | . . . Highest Corruption 7 | . . 7 Average Corruption 6 | . . 6 Corruption Purged . | . . . Corruption Blocked . | . . . Effects 6 | . . 6 Message Errors 4 | . . 4 Matter Fused 1 | . . 1 Heat Flow Errors 1 | . . 1 Overload Shots . | . . . Overflow Damage 267 | . 183 84 Projectiles . | . . . Explosions . | . . . Melee 267 | . 183 84 Knockbacks 3 | . 2 1 Impact 3 | . 2 1 Kinetic . | . . . Secondary . | . . . Self-Inflicted Damage . | . . . Shots . | . . . Rammed . | . . . Targets Rammed . | . . . Kicked . | . . . Crushed . | . . . Highest Temperature 182 | . 142 182 Average Temperature 58 | . 56 88 Received Heat Transfer 492 | . 246 246 Siege Activations . | . . . Robots Corrupted . | . . . Combat Hostiles . | . . . Parts Fried 9 | . 8 1 Impact Corruptions 13 | . 8 5 Robots Melted . | . . . Combat Hostiles . | . . . Parts Melted 1 | . 1 . Heat Transferred 1110 | . 1110 . Parts Sabotaged . | . . . Parts Stolen . | . . . Parts Stripped . | . . . Power Chain Reactions . | . . . Missiles Intercepted . | . . . Alert | -11 -10 -9 ------- Run | Scr Mat Mat Peak Influence 310 | . 310 275 Initial 121 | . . 121 Average 159 | . 156 166 Maximum Alert Level 1 | . 1 1 Low Security (%) 65 | . 56 80 Level 1 34 | . 43 19 Level 2 . | . . . Level 3 . | . . . Level 4 . | . . . Level 5 . | . . . High Security . | . . . Max Security . | . . . Squads Dispatched 4 | . 3 1 Investigation 1 | . 1 . Extermination . | . . . Reinforcement 3 | . 2 1 Assault . | . . . Garrison . | . . . Intercept . | . . . Searches Triggered . | . . . Construction Impeded . | . . . Haulers Reinforced . | . . . Active Scanning Responses . | . . . Cargo Convoy Interrupts . | . . . Stealth | -11 -10 -9 --------- Run | Scr Mat Mat Distress Signals . | . . . Communications Jammed . | . . . Distress Signals . | . . . Times Spotted 38 | . 27 11 Peak Tracking Total 5 | . 5 5 Tactical Retreats 3 | . 2 1 Traps | -11 -10 -9 ------- Run | Scr Mat Mat Traps Triggered 3 | . 1 2 Indirectly . | . . . Trap Hack Attempts . | . . . Triggered . | . . . Disarmed 4 | . 4 . Reprogrammed . | . . . Reused . | . . . Traps Extracted . | . . . Installed . | . . . Triggered . | . . . Machines | -11 -10 -9 ---------- Run | Scr Mat Mat Machines Disabled . | . . . Max in Single Turn . | . . . Machines Sabotaged . | . . . Garrisons Compromised . | . . . Overloaded Fab Kills . | . . . Hacking | -11 -10 -9 --------- Run | Scr Mat Mat Machines Accessed 8 | . 5 3 Terminals 8 | . 5 3 Fabricators . | . . . Repair Stations . | . . . Recycling Units . | . . . Scanalyzers . | . . . Garrison Access . | . . . Total Hacks 19 | . 12 7 Successful 15 | . 10 5 Failed 4 | . 2 2 Catastrophic . | . . . Database Lockouts . | . . . Manual 12 | . 6 6 Terminals 19 | . 12 7 Fabricators . | . . . Repair Stations . | . . . Recycling Units . | . . . Scanalyzers . | . . . Garrison Access . | . . . Terminal Hacks 7 | . 6 1 Branch Access Points 1 | . 1 . Alert Level 1 | . 1 . Locate Traps 1 | . 1 . Disarm Traps 1 | . 1 . Registered Components 1 | . 1 . Zone Layout 2 | . 1 1 Fabricator Hacks . | . . . Repair Station Hacks . | . . . Recycling Unit Hacks . | . . . Scanalyzer . | . . . Garrison Access Hacks . | . . . Unauthorized Hacks 8 | . 4 4 Terminals 8 | . 4 4 Track 2 | . 1 1 Assimilate 1 | . . 1 Botnet 5 | . 3 2 Fabricators . | . . . Repair Stations . | . . . Recycling Units . | . . . Scanalyzers . | . . . Garrison Access . | . . . Data Cores Recovered 1 | . 1 . Used 1 | . 1 . Hacking Detections 6 | . 4 2 Full Trace Events . | . . . Feedback Events . | . . . Feedback Blocked . | . . . Robot Schematics Acquired . | . . . Robots Built . | . . . Authchips . | . . . Time . | . . . Total Robot Build Rating . | . . . Part Schematics Acquired . | . . . Parts Built . | . . . Authchips . | . . . Time . | . . . Total Part Build Rating . | . . . Parts Repaired . | . . . Time . | . . . Parts Recycled . | . . . Recycled Matter . | . . . Retrieved Matter . | . . . Retrieved Components . | . . . Parts Scanalyzed . | . . . Part Schematics Acquired . | . . . Parts Damaged . | . . . Bothacking | -11 -10 -9 ------------ Run | Scr Mat Mat Used RIF Installer . | . . . Robots Hacked . | . . . Non-combat . | . . . Combat . | . . . Robot Hacks Applied . | . . . Relay Couplers Released . | . . . Fabnet Peak Effective % . | . . . Robots Rewired . | . . . Allies Hacked . | . . . Hacks Repelled . | . . . Allies | -11 -10 -9 -------- Run | Scr Mat Mat Total Allies . | . . . Largest Group . | . . . Highest-Rated Group . | . . . Highest-Rated Ally . | . . . Total Orders . | . . . Ally Attacks . | . . . Total Damage . | . . . Kills . | . . . Allies Corrupted . | . . . Allies Melted . | . . . Intel | -11 -10 -9 ------- Run | Scr Mat Mat Robot Analysis Total . | . . . Derelict Logs Recovered . | . . . Drone Launches . | . . . Drone Recoveries . | . . . Exploration | -11 -10 -9 ------------- Run | Scr Mat Mat Turns Passed 919 | . 559 360 Spaces Moved 602 | 1 379 222 Core 73 | . . 73 Treads . | . . . Legs 254 | 1 146 107 Wheels . | . . . Hover . | . . . Flight 275 | . 233 42 Fastest Speed 37 | 120 37 37 Average Speed 79 | 120 68 96 Slowest Speed 120 | 120 120 120 Overloaded Moves . | . . . Propulsion Burnouts . | . . . Robots Hopped 1 | . 1 . Cave-ins Triggered . | . . . Exploration Rate (%) 34 | 2 70 30 Regions Visited 2 Branch Regions . Pre-discovered Areas . | . . . Known Exits Taken . | . . . Unknown Exits Taken 2 | 1 1 . Scrap Searched . | . . . Spaces Dug . | . . . Terrain Destroyed . | . . . Melee . | . . . Projectile . | . . . AOE . | . . . Terrain Rammed . | . . . Walls Destroyed . | . . . Machines Disabled . | . . . Actions | -11 -10 -9 --------- Run | Scr Mat Mat Total 872 | . 578 294 Wait 142 | . 118 24 Move 598 | . 376 222 Hop 1 | . 1 . Pick Up 8 | . 7 1 Fast Attach 9 | . 3 6 Attach 6 | . 3 3 Detach 2 | . 2 . Swap 3 | . 3 . Drop 10 | . 10 . Fire 33 | . 33 . Melee 60 | . 22 38 Ram . | . . . Kick . | . . . Crush . | . . . Escape Stasis . | . . . Rewire . | . . . Trap . | . . . Miscellaneous . | . . . Route ------- -11/Scrapyard -10/Materials (discovered 4 exits: *Mat x2 / *Min x2) -9/Materials (discovered 1 exit: [*Min]) History --------- Turn | Location | Event 1 | -11/Scrapyard | Discovered new exit (range 0) 1 | -11/Scrapyard | Entered Materials 96 | -10/Materials | Discovered new exit (range 16) 310 | -10/Materials | Build established: Mutant 404 | -10/Materials | Identified exit to Mines 444 | -10/Materials | Core integrity fell below 50% 466 | -10/Materials | Core integrity fell below 20% 493 | -10/Materials | Lost 3 parts (2p1n) 538 | -10/Materials | Discovered new exit (range 16) 548 | -10/Materials | Discovered new exit (range 15) 560 | -10/Materials | Entered another Materials area 560 | -9/Materials | Evolved 2 slots: Propulsion x2 622 | -9/Materials | Lost 3 parts (1p2n) 736 | -9/Materials | Lost 3 parts (1n1u1w) 756 | -9/Materials | Core integrity fell below 50% 811 | -9/Materials | Discovered new exit (range 13) 909 | -9/Materials | Core integrity fell below 20% 920 | -9/Materials | Destroyed by Y-45 Defender with Heavy Assault Rifle Last Messages --------------- Testing... System interface override in place. >>Trojan(Track) Trojan loaded successfully. Testing... Tracking enabled and active. 00901_ G=UU#SLK3IIMXK=|%4HJ61D=T%>I79XHVS5 00901_ G-34 Mercenary destroyed. 00902_ Destroyed Heat Sink. 00902_ G-34 Mercenary system corrupted by crushing effect. 00902_ G-34 Mercenary knocked back. 00904_ G-34 Mercenary misfires. 00905_ U-05 Engineer destroyed. 00907_ T-07 Excavator destroyed. 00907_ Imp. Ion Engine destroyed. 00909_ R-06 Scavenger collects Seismic Detector. 00911_ Imp. Aluminum Leg destroyed. 00912_ R-06 Scavenger collects Sml. Laser. 00914_ G-34 Mercenary misfires. 00915_ U-05 Engineer builds a Door. Map ----- +----------------------------------------------------+ | ??????????????? ?????????#"" < #???????????????? | | ?????????????????????????#"| #???????????????? | | ?????????????????????????#" #???????????????? | | ?????????????????????????#""" #???????????????? | | ?????????????????????????#### ##???????????????? | | ????????????????????????????# #????????????????? | | ????????????????????????????# #?????????##?????? | | ????????????????????????????# #??????? ##????? | | ??????????????????????####### ##???? #????? | | ??????????????????????# #?? #?????? | | ??????????????????????# # #?????? | | ??????????????????????# !!! + #?????? | | ???????????????######## !!! # """ """ #?????? | | ???????????????# [# !!! #??"" "?????????? | | ???????????????#"" # |!! ###???? "?????????? | | ???????????????#"T + =%= #?????????????????? | | ???????????????#"" # !!!* #?????????????????? | | ???????????????# # !!! #?????????????????? | | ???????????????# # !!! #?????????????????? | | ???????????????#####/##% #?????????????????? | | ???????????????????# % +?????????????????? | | ???????????????????# #?????????????????? | | ???????????????????# ##????????????????? | | ????????????????########+## #????????????????? | | ????????????????# """ # #????????????????? | | ????????????????# "Y" //@r #????????????????? | | ???????????????# Y /! # #????????????????? | | ???????????????## #? #????????????????? | | ????????????????#########+#????##????????????????? | | ????????????????????????? ??????????????????????? | | ????????????????????????? ?????????????????????? | | ????????????????????????? ????????????????????? | | ?????????????????????????#####???????????????????? | | ?????????????????????????????????????????????????? | | ?????????????????????????????????????????????????? | | ?????????????????????????????????????????????????? | | ?????????????????????????????????????????????????? | | ?????????????????????????????????????????????????? | | ?????????????????????????????????????????????????? | | ?????????????????????????????????????????????????? | | ?????????????????????????????????????????????????? | | ?????????????????????????????????????????????????? | | ?????????????????????????????????????????????????? | | ?????????????????????????????????????????????????? | | ?????????????????????????????????????????????????? | | ?????????????????????????????????????????????????? | | ?????????????????????????????????????????????????? | | ?????????????????????????????????????????????????? | | ?????????????????????????????????????????????????? | | ?????????????????????????????????????????????????? | +----------------------------------------------------+ Best States ------------- Heat Dissipation 28 Energy Generation 12 Energy Capacity 265 Matter Stores 300 Matter Capacity 300 Sight Range 16 Terrain Scan Density 10 Evasion (%) 62 Item Schematics ----------------- None Robot Schematics ------------------ None Fabricated ------------ Nothing Alien Tech Used ----------------- None Achievements -------------- None Challenges ------------ None Game ------ Seed SeismicDynamicClaymores Manual? 0 Play Time 00:22:14 Cumulative 36.8 hours Start 2022.06.14 @ 21:09:59 End 2022.06.24 @ 15:53:00 Sessions 2 Manual Loads 0 Difficulty Rogue Special Mode None Game No. 60 Rogue 60 Adventurer 0 Explorer 0 Win Type - Total 0 Types 0/0/0/0/0/0/0/0/0 Lore% 26 Gallery% 30 Achievement% 27 Wizard Run 0 Options --------- ASCII 0 Keyboard 1 Movement Vi Keybinds 0 Fullscreen 1 Font 24/Smallcaps Map View 76x50 Tactical HUD 1 Map Filters NONE Filters NONE Steam 1 RUN: f4999712-ab26-4249-92db-aa3f8fdb8ada